[Event "*** SCC Grand Prix: Titled Tuesday Blitz"]
[Site "Chess.com"]
[Date "2020.07.14"]
[Round "6"]
[White "Onischuk_V"]
[Black "frederiksvane"]
[Result "1-0"]
[WhiteElo "2896"]
[BlackElo "2686"]
[TimeControl "180+1"]
[EndTime "11:07:47 PDT"]
[Termination "Onischuk_V won by checkmate"]

1. e4 {[%clk 0:02:59.3]} 1... c5 {[%clk 0:02:59.8]} 2. Nc3 {[%clk 0:02:58.8]}
2... e6 {[%clk 0:02:58.7]} 3. Nge2 {[%clk 0:02:54.1]} 3... a6 {[%clk 0:02:54.9]}
4. g3 {[%clk 0:02:53.9]} 4... b5 {[%clk 0:02:55]} 5. Bg2 {[%clk 0:02:53]} 5...
Bb7 {[%clk 0:02:55.3]} 6. O-O {[%clk 0:02:52.5]} 6... Nf6 {[%clk 0:02:50.1]} 7.
d4 {[%clk 0:02:51.7]} 7... cxd4 {[%clk 0:02:49.7]} 8. Nxd4 {[%clk 0:02:51.4]}
8... b4 {[%clk 0:02:49.7]} 9. Na4 {[%clk 0:02:49.1]} 9... Bxe4 {[%clk
0:02:44.4]} 10. Bxe4 {[%clk 0:02:45.8]} 10... Nxe4 {[%clk 0:02:45.3]} 11. Re1
{[%clk 0:02:44.4]} 11... d5 {[%clk 0:02:44.6]} 12. c4 {[%clk 0:02:33.8]} 12...
bxc3 {[%clk 0:02:41.4]} 13. Nxc3 {[%clk 0:02:33.2]} 13... Nxc3 {[%clk 0:02:36]}
14. bxc3 {[%clk 0:02:32.7]} 14... Be7 {[%clk 0:02:36.4]} 15. Rb1 {[%clk
0:02:15.6]} 15... O-O {[%clk 0:02:35.9]} 16. Rb7 {[%clk 0:02:15.4]} 16... Bf6
{[%clk 0:02:32.3]} 17. Ba3 {[%clk 0:02:14.9]} 17... Re8 {[%clk 0:02:26]} 18. Qa4
{[%clk 0:02:14.3]} 18... Be7 {[%clk 0:01:11.2]} 19. Nxe6 {[%clk 0:02:11.9]}
19... fxe6 {[%clk 0:01:09.1]} 20. Rxe6 {[%clk 0:02:12]} 20... Nc6 {[%clk
0:01:03.9]} 21. Bxe7 {[%clk 0:01:14.8]} 21... Nxe7 {[%clk 0:00:44.5]} 22. Rd7
{[%clk 0:01:14.4]} 22... Qc8 {[%clk 0:00:28.9]} 23. Rexe7 {[%clk 0:01:14.1]}
23... Qxc3 {[%clk 0:00:20.4]} 24. Rxg7+ {[%clk 0:01:05.6]} 24... Qxg7 {[%clk
0:00:21.3]} 25. Rxg7+ {[%clk 0:01:05.1]} 25... Kxg7 {[%clk 0:00:22.2]} 26. Qd7+
{[%clk 0:01:04.1]} 26... Kh8 {[%clk 0:00:22.9]} 27. Qxd5 {[%clk 0:01:03.7]}
27... Ra7 {[%clk 0:00:19.9]} 28. Qd4+ {[%clk 0:01:01.5]} 28... Rg7 {[%clk
0:00:20.1]} 29. h4 {[%clk 0:01:01.3]} 29... Re6 {[%clk 0:00:14.6]} 30. Kg2
{[%clk 0:00:54.6]} 30... h6 {[%clk 0:00:11.4]} 31. h5 {[%clk 0:00:51.4]} 31...
Kh7 {[%clk 0:00:09.4]} 32. f4 {[%clk 0:00:46.5]} 32... Re2+ {[%clk 0:00:04.1]}
33. Kh3 {[%clk 0:00:46.6]} 33... Rxa2 {[%clk 0:00:02.9]} 34. Qe4+ {[%clk
0:00:37.7]} 34... Kh8 {[%clk 0:00:02]} 35. g4 {[%clk 0:00:28]} 35... Rd2 {[%clk
0:00:01.3]} 36. Qe6 {[%clk 0:00:22.3]} 36... Rdd7 {[%clk 0:00:02.2]} 37. Qxh6+
{[%clk 0:00:21.5]} 37... Kg8 {[%clk 0:00:02.9]} 38. Qxa6 {[%clk 0:00:20.7]}
38... Rdf7 {[%clk 0:00:02.1]} 39. Qe6 {[%clk 0:00:19.7]} 39... Kh8 {[%clk
0:00:01.8]} 40. f5 {[%clk 0:00:18.3]} 40... Re7 {[%clk 0:00:01.7]} 41. Qc8+
{[%clk 0:00:17.8]} 41... Kh7 {[%clk 0:00:02.4]} 42. f6 {[%clk 0:00:17.6]} 42...
Re3+ {[%clk 0:00:03]} 43. Kh4 {[%clk 0:00:17.9]} 43... Rf7 {[%clk 0:00:03.2]}
44. Qf5+ {[%clk 0:00:16.7]} 44... Kh8 {[%clk 0:00:03]} 45. Qg6 {[%clk
0:00:14.5]} 45... Re4 {[%clk 0:00:02.8]} 46. Qxe4 {[%clk 0:00:11.7]} 46... Rxf6
{[%clk 0:00:02.7]} 47. Qe5 {[%clk 0:00:11]} 47... Kg7 {[%clk 0:00:03]} 48. g5
{[%clk 0:00:10.2]} 48... Kh7 {[%clk 0:00:03.9]} 49. Qxf6 {[%clk 0:00:10]} 49...
Kg8 {[%clk 0:00:04.8]} 50. h6 {[%clk 0:00:10.4]} 50... Kh7 {[%clk 0:00:05.4]}
51. Qg7# {[%clk 0:00:10.6]} 1-0

[Event "*** SCC Grand Prix: Titled Tuesday Blitz"]
[Site "Chess.com"]
[Date "2020.07.14"]
[Round "6"]
[White "ChronicUnhappiness"]
[Black "enzovsky"]
[Result "0-1"]
[WhiteElo "2357"]
[BlackElo "2526"]
[TimeControl "180+1"]
[EndTime "11:07:50 PDT"]
[Termination "enzovsky won by checkmate"]

1. c4 {[%clk 0:03:00.9]} 1... g6 {[%clk 0:02:58.8]} 2. d4 {[%clk 0:02:59.7]}
2... Nf6 {[%clk 0:02:58.5]} 3. Nc3 {[%clk 0:02:58.9]} 3... d5 {[%clk 0:02:58.1]}
4. Nf3 {[%clk 0:02:57.7]} 4... Bg7 {[%clk 0:02:58]} 5. Bg5 {[%clk 0:02:57.5]}
5... Ne4 {[%clk 0:02:57.6]} 6. Bh4 {[%clk 0:02:56.9]} 6... Nxc3 {[%clk
0:02:55.7]} 7. bxc3 {[%clk 0:02:56.2]} 7... dxc4 {[%clk 0:02:56.6]} 8. e3 {[%clk
0:02:56.3]} 8... b5 {[%clk 0:02:55.5]} 9. Be2 {[%clk 0:02:55.4]} 9... O-O {[%clk
0:02:53.1]} 10. O-O {[%clk 0:02:54.9]} 10... c6 {[%clk 0:02:50.4]} 11. a4 {[%clk
0:02:53.4]} 11... a6 {[%clk 0:02:50.1]} 12. Nd2 {[%clk 0:02:52.3]} 12... Nd7
{[%clk 0:02:48.5]} 13. Bf3 {[%clk 0:02:48.1]} 13... Bb7 {[%clk 0:02:48.2]} 14.
Qb1 {[%clk 0:02:47.2]} 14... Rb8 {[%clk 0:02:34.2]} 15. Bg3 {[%clk 0:02:45.8]}
15... e5 {[%clk 0:02:30]} 16. Qb4 {[%clk 0:02:36.6]} 16... c5 {[%clk 0:02:15]}
17. dxc5 {[%clk 0:02:26.9]} 17... Qc7 {[%clk 0:02:15.1]} 18. Bxb7 {[%clk
0:02:06.9]} 18... Rxb7 {[%clk 0:02:11.5]} 19. axb5 {[%clk 0:02:01.5]} 19... axb5
{[%clk 0:02:05.7]} 20. Ne4 {[%clk 0:01:57.5]} 20... Qc6 {[%clk 0:02:02.7]} 21.
Nd6 {[%clk 0:01:33.2]} 21... Nxc5 {[%clk 0:01:59.8]} 22. Nxb7 {[%clk 0:01:27.9]}
22... Nxb7 {[%clk 0:02:00.7]} 23. Rfd1 {[%clk 0:01:20]} 23... Nc5 {[%clk
0:01:58.5]} 24. Ra5 {[%clk 0:01:17.5]} 24... Rb8 {[%clk 0:01:56.7]} 25. Ra7
{[%clk 0:01:00.6]} 25... h5 {[%clk 0:01:52.4]} 26. h4 {[%clk 0:00:59.6]} 26...
Bf8 {[%clk 0:01:50.2]} 27. Qa5 {[%clk 0:00:58.8]} 27... Bd6 {[%clk 0:01:45.4]}
28. Qa2 {[%clk 0:00:42.2]} 28... Kg7 {[%clk 0:01:41]} 29. Qe2 {[%clk 0:00:41.9]}
29... Nd3 {[%clk 0:01:38.1]} 30. Qf3 {[%clk 0:00:40.4]} 30... Qxf3 {[%clk
0:01:38.1]} 31. gxf3 {[%clk 0:00:40.9]} 31... b4 {[%clk 0:01:36.8]} 32. cxb4
{[%clk 0:00:40]} 32... Rxb4 {[%clk 0:01:37.5]} 33. Rd7 {[%clk 0:00:33.1]} 33...
Bb8 {[%clk 0:01:34.7]} 34. Rd8 {[%clk 0:00:29.9]} 34... Bc7 {[%clk 0:01:32.5]}
35. R8xd3 {[%clk 0:00:27.9]} 35... cxd3 {[%clk 0:01:31.4]} 36. Rxd3 {[%clk
0:00:28.8]} 36... Kf6 {[%clk 0:01:26.7]} 37. Rd7 {[%clk 0:00:27.9]} 37... Rb7
{[%clk 0:01:24.9]} 38. Kg2 {[%clk 0:00:23]} 38... Ke6 {[%clk 0:01:23.6]} 39. Rd3
{[%clk 0:00:22]} 39... f5 {[%clk 0:01:23.1]} 40. f4 {[%clk 0:00:20.2]} 40... e4
{[%clk 0:01:21.8]} 41. Rc3 {[%clk 0:00:20.5]} 41... Bd6 {[%clk 0:01:18.7]} 42.
Rc6 {[%clk 0:00:19.5]} 42... Rb2 {[%clk 0:01:16.9]} 43. Ra6 {[%clk 0:00:18.9]}
43... Kd5 {[%clk 0:01:16.9]} 44. Ra8 {[%clk 0:00:18.6]} 44... Bc5 {[%clk
0:01:14.7]} 45. Kh3 {[%clk 0:00:16.1]} 45... Rb1 {[%clk 0:01:12.9]} 46. Rg8
{[%clk 0:00:14.7]} 46... Rb6 {[%clk 0:01:12.4]} 47. Kg2 {[%clk 0:00:13.9]} 47...
Kc4 {[%clk 0:01:10.1]} 48. Re8 {[%clk 0:00:13.9]} 48... Kd3 {[%clk 0:01:06.9]}
49. Re5 {[%clk 0:00:13.6]} 49... Rb5 {[%clk 0:01:02.2]} 50. Kf1 {[%clk
0:00:11.4]} 50... Rb1+ {[%clk 0:00:54.6]} 51. Kg2 {[%clk 0:00:11.6]} 51... Kc4
{[%clk 0:00:55.5]} 52. Bh2 {[%clk 0:00:11.3]} 52... Rb7 {[%clk 0:00:53.4]} 53.
Re6 {[%clk 0:00:11.4]} 53... Rb2 {[%clk 0:00:48]} 54. Kg1 {[%clk 0:00:09.2]}
54... Kd3 {[%clk 0:00:45.7]} 55. Rxg6 {[%clk 0:00:07.6]} 55... Ke2 {[%clk
0:00:42.6]} 56. Bg3 {[%clk 0:00:07.9]} 56... Kf3 {[%clk 0:00:40.9]} 57. Rg5
{[%clk 0:00:07.6]} 57... Bxe3 {[%clk 0:00:39.3]} 58. fxe3 {[%clk 0:00:06.7]}
58... Rg2+ {[%clk 0:00:40]} 59. Kh1 {[%clk 0:00:06.1]} 59... Rxg3 {[%clk
0:00:39.7]} 60. Rxf5 {[%clk 0:00:06.1]} 60... Kxe3 {[%clk 0:00:38.3]} 61. Rxh5
{[%clk 0:00:06.1]} 61... Kf2 {[%clk 0:00:34.6]} 62. Re5 {[%clk 0:00:03.7]} 62...
Rh3# {[%clk 0:00:34.6]} 0-1

[Event "*** SCC Grand Prix: Titled Tuesday Blitz"]
[Site "Chess.com"]
[Date "2020.07.14"]
[Round "6"]
[White "ace_mar"]
[Black "PavelShkapenko"]
[Result "0-1"]
[WhiteElo "2446"]
[BlackElo "2599"]
[TimeControl "180+1"]
[EndTime "11:07:57 PDT"]
[Termination "PavelShkapenko won by resignation"]

1. d4 {[%clk 0:03:00.9]} 1... Nf6 {[%clk 0:02:58.9]} 2. c4 {[%clk 0:03:00.6]}
2... e6 {[%clk 0:02:59]} 3. g3 {[%clk 0:03:01]} 3... Bb4+ {[%clk 0:02:57.3]} 4.
Bd2 {[%clk 0:03:00.8]} 4... Qe7 {[%clk 0:02:56.8]} 5. Nf3 {[%clk 0:03:00.8]}
5... Nc6 {[%clk 0:02:57]} 6. Nc3 {[%clk 0:03:01.2]} 6... Bxc3 {[%clk 0:02:56.5]}
7. Bxc3 {[%clk 0:03:02.1]} 7... Ne4 {[%clk 0:02:56.1]} 8. Rc1 {[%clk 0:03:02.7]}
8... O-O {[%clk 0:02:55.2]} 9. Bg2 {[%clk 0:03:02.6]} 9... d6 {[%clk 0:02:55.3]}
10. d5 {[%clk 0:03:03.1]} 10... Nxc3 {[%clk 0:02:54.9]} 11. Rxc3 {[%clk
0:03:02.8]} 11... Nb8 {[%clk 0:02:54.4]} 12. dxe6 {[%clk 0:02:57.3]} 12... fxe6
{[%clk 0:02:54.4]} 13. O-O {[%clk 0:02:52.7]} 13... Nd7 {[%clk 0:02:52.9]} 14.
Qc2 {[%clk 0:02:38.5]} 14... Nf6 {[%clk 0:02:47.9]} 15. Rd1 {[%clk 0:02:37.6]}
15... Kh8 {[%clk 0:02:43]} 16. Ne1 {[%clk 0:02:24.2]} 16... Rb8 {[%clk
0:02:35.3]} 17. e4 {[%clk 0:02:23.7]} 17... Bd7 {[%clk 0:02:32.1]} 18. c5 {[%clk
0:02:20.3]} 18... Bc6 {[%clk 0:02:31.1]} 19. cxd6 {[%clk 0:02:15.5]} 19... cxd6
{[%clk 0:02:30.8]} 20. e5 {[%clk 0:02:06.6]} 20... dxe5 {[%clk 0:02:26.8]} 21.
Bxc6 {[%clk 0:02:05.8]} 21... bxc6 {[%clk 0:02:26.7]} 22. Rxc6 {[%clk
0:02:06.7]} 22... e4 {[%clk 0:02:05.3]} 23. Ng2 {[%clk 0:01:52.8]} 23... Ng4
{[%clk 0:01:52]} 24. Rf1 {[%clk 0:01:27.9]} 24... e3 {[%clk 0:01:05.7]} 25. Nxe3
{[%clk 0:01:15.3]} 25... Nxe3 {[%clk 0:01:00.3]} 26. fxe3 {[%clk 0:01:16.2]}
26... Rxf1+ {[%clk 0:01:00.2]} 27. Kxf1 {[%clk 0:01:17.1]} 27... Rf8+ {[%clk
0:01:00.2]} 28. Kg1 {[%clk 0:01:07]} 28... Qf6 {[%clk 0:00:46.6]} 29. Qe2 {[%clk
0:00:55.4]} 29... Qf5 {[%clk 0:00:46.5]} 30. Rc1 {[%clk 0:00:47.7]} 30... Qd5
{[%clk 0:00:39.1]} 31. Rf1 {[%clk 0:00:43.2]} 31... Rd8 {[%clk 0:00:34]} 32. Qf3
{[%clk 0:00:38.2]} 32... Qc5 {[%clk 0:00:31.3]} 33. b3 {[%clk 0:00:20.2]} 33...
h6 {[%clk 0:00:30.3]} 34. Qe4 {[%clk 0:00:19.8]} 34... Qb6 {[%clk 0:00:22.7]}
35. Qf4 {[%clk 0:00:17.9]} 35... Qa6 {[%clk 0:00:21.2]} 36. Qc7 {[%clk
0:00:14.8]} 36... Rg8 {[%clk 0:00:18.7]} 37. a4 {[%clk 0:00:12.8]} 37... Qd3
{[%clk 0:00:18.2]} 38. Qxa7 {[%clk 0:00:09.3]} 38... Qxb3 {[%clk 0:00:18]} 39.
a5 {[%clk 0:00:08.9]} 39... Rd8 {[%clk 0:00:14.3]} 40. Qb6 {[%clk 0:00:07.9]}
40... Qd5 {[%clk 0:00:13.2]} 41. a6 {[%clk 0:00:07.1]} 41... Rc8 {[%clk
0:00:12.9]} 42. a7 {[%clk 0:00:05.4]} 42... Kh7 {[%clk 0:00:13.3]} 43. Qb1+
{[%clk 0:00:03.8]} 43... g6 {[%clk 0:00:10.7]} 44. Rc1 {[%clk 0:00:04]} 44...
Rf8 {[%clk 0:00:09.6]} 45. Qb8 {[%clk 0:00:03.9]} 45... Qf3 {[%clk 0:00:08.6]}
46. a8=Q {[%clk 0:00:01.7]} 46... Qxa8 {[%clk 0:00:07.4]} 47. Qxa8 {[%clk
0:00:01.3]} 47... Rxa8 {[%clk 0:00:06.5]} 48. Rc7+ {[%clk 0:00:02.2]} 48... Kg8
{[%clk 0:00:06.8]} 49. Kf2 {[%clk 0:00:03.1]} 49... Rf8+ {[%clk 0:00:06.3]} 50.
Kg1 {[%clk 0:00:04]} 50... Rf7 {[%clk 0:00:06.8]} 51. Kg2 {[%clk 0:00:04.9]}
51... Rxc7 {[%clk 0:00:06.5]} 0-1

[Event "*** SCC Grand Prix: Titled Tuesday Blitz"]
[Site "Chess.com"]
[Date "2020.07.14"]
[Round "6"]
[White "blitzking1729"]
[Black "bazar-wokzal"]
[Result "1-0"]
[WhiteElo "2580"]
[BlackElo "2434"]
[TimeControl "180+1"]
[EndTime "11:07:57 PDT"]
[Termination "blitzking1729 won on time"]

1. Nf3 {[%clk 0:03:00.9]} 1... c5 {[%clk 0:02:57.4]} 2. g3 {[%clk 0:03:00.3]}
2... Nc6 {[%clk 0:02:57.3]} 3. Bg2 {[%clk 0:03:00.2]} 3... e5 {[%clk 0:02:57.7]}
4. O-O {[%clk 0:02:59.4]} 4... f5 {[%clk 0:02:57.6]} 5. d3 {[%clk 0:02:55.7]}
5... Nf6 {[%clk 0:02:55.4]} 6. e4 {[%clk 0:02:52.2]} 6... d6 {[%clk 0:02:55]} 7.
c3 {[%clk 0:02:52.4]} 7... Be7 {[%clk 0:02:46.8]} 8. Qb3 {[%clk 0:02:43.3]} 8...
Na5 {[%clk 0:02:34.7]} 9. Qc2 {[%clk 0:02:36.1]} 9... O-O {[%clk 0:02:34.2]} 10.
Nbd2 {[%clk 0:02:32.1]} 10... Nc6 {[%clk 0:02:05.2]} 11. Qb3+ {[%clk 0:01:46.6]}
11... Kh8 {[%clk 0:02:04.4]} 12. Ng5 {[%clk 0:01:46.1]} 12... Qe8 {[%clk
0:02:01.7]} 13. Ne6 {[%clk 0:01:43.2]} 13... Na5 {[%clk 0:01:46]} 14. Qa3 {[%clk
0:01:36.7]} 14... Bxe6 {[%clk 0:01:45.2]} 15. Qxa5 {[%clk 0:01:36.3]} 15... f4
{[%clk 0:01:37]} 16. gxf4 {[%clk 0:01:34]} 16... exf4 {[%clk 0:01:36.9]} 17. Nf3
{[%clk 0:01:27.3]} 17... b6 {[%clk 0:01:34.8]} 18. Qa3 {[%clk 0:01:21.5]} 18...
Qh5 {[%clk 0:01:33.9]} 19. Qa4 {[%clk 0:00:51.9]} 19... Bh3 {[%clk 0:01:17.7]}
20. Ne1 {[%clk 0:00:22.1]} 20... Bxg2 {[%clk 0:00:58]} 21. Kxg2 {[%clk
0:00:21.3]} 21... Ng4 {[%clk 0:00:44.4]} 22. h3 {[%clk 0:00:17.2]} 22... f3+
{[%clk 0:00:42.1]} 23. Nxf3 {[%clk 0:00:16.5]} 23... Rxf3 {[%clk 0:00:38]} 24.
Kxf3 {[%clk 0:00:08]} 24... Ne5+ {[%clk 0:00:28.8]} 25. Kg2 {[%clk 0:00:03.9]}
25... Qg6+ {[%clk 0:00:19.4]} 26. Kh1 {[%clk 0:00:03.5]} 26... Qh5 {[%clk
0:00:17.4]} 27. Kg2 {[%clk 0:00:03.4]} 27... Qf3+ {[%clk 0:00:16.8]} 28. Kh2
{[%clk 0:00:02.7]} 28... Rf8 {[%clk 0:00:15.4]} 29. Qd1 {[%clk 0:00:02.7]} 29...
Qf7 {[%clk 0:00:12.2]} 30. f4 {[%clk 0:00:02.6]} 30... Ng6 {[%clk 0:00:11.8]}
31. f5 {[%clk 0:00:02.9]} 31... Ne5 {[%clk 0:00:11.8]} 32. Bf4 {[%clk
0:00:03.5]} 32... Bf6 {[%clk 0:00:11.4]} 33. Bxe5 {[%clk 0:00:03.8]} 33... Bxe5+
{[%clk 0:00:11.5]} 34. Kh1 {[%clk 0:00:04.5]} 34... Qe7 {[%clk 0:00:10.8]} 35.
Qg4 {[%clk 0:00:05]} 35... b5 {[%clk 0:00:10.1]} 36. Rad1 {[%clk 0:00:04.7]}
36... b4 {[%clk 0:00:09]} 37. d4 {[%clk 0:00:04.7]} 37... Bf6 {[%clk 0:00:08.9]}
38. Rfe1 {[%clk 0:00:04.4]} 38... bxc3 {[%clk 0:00:08.7]} 39. bxc3 {[%clk
0:00:05.3]} 39... cxd4 {[%clk 0:00:09.5]} 40. cxd4 {[%clk 0:00:06.2]} 40... Re8
{[%clk 0:00:09.1]} 41. Re2 {[%clk 0:00:06.7]} 41... h6 {[%clk 0:00:08.4]} 42.
Rde1 {[%clk 0:00:06.5]} 42... Qf7 {[%clk 0:00:08.5]} 43. e5 {[%clk 0:00:06.7]}
43... dxe5 {[%clk 0:00:05.7]} 44. dxe5 {[%clk 0:00:07.6]} 44... Qd5+ {[%clk
0:00:05.2]} 45. Qg2 {[%clk 0:00:07.4]} 45... Rxe5 {[%clk 0:00:04.6]} 46. Rxe5
{[%clk 0:00:06.8]} 46... Qxe5 {[%clk 0:00:02]} 47. Rxe5 {[%clk 0:00:06.1]} 1-0

[Event "*** SCC Grand Prix: Titled Tuesday Blitz"]
[Site "Chess.com"]
[Date "2020.07.14"]
[Round "6"]
[White "ARTHURMOTIVATOR"]
[Black "Larina_Marija"]
[Result "1-0"]
[WhiteElo "2330"]
[BlackElo "2105"]
[TimeControl "180+1"]
[EndTime "11:07:57 PDT"]
[Termination "ARTHURMOTIVATOR won by checkmate"]

1. e4 {[%clk 0:03:00.9]} 1... d5 {[%clk 0:02:58.5]} 2. exd5 {[%clk 0:02:59.9]}
2... Qxd5 {[%clk 0:02:59.4]} 3. Nc3 {[%clk 0:02:57.7]} 3... Qa5 {[%clk
0:02:59.8]} 4. d4 {[%clk 0:02:56.3]} 4... Nf6 {[%clk 0:03:00]} 5. Bc4 {[%clk
0:02:53.9]} 5... Bf5 {[%clk 0:02:59]} 6. Ne2 {[%clk 0:02:52.3]} 6... e6 {[%clk
0:02:58]} 7. O-O {[%clk 0:02:50]} 7... Nbd7 {[%clk 0:02:56.5]} 8. Ng3 {[%clk
0:02:45.2]} 8... Bg6 {[%clk 0:02:56.4]} 9. f4 {[%clk 0:02:30.1]} 9... O-O-O
{[%clk 0:02:35.3]} 10. Qe2 {[%clk 0:02:22.5]} 10... c5 {[%clk 0:02:06.9]} 11. d5
{[%clk 0:01:53.6]} 11... exd5 {[%clk 0:01:50.9]} 12. Nxd5 {[%clk 0:01:49.5]}
12... Re8 {[%clk 0:01:34.6]} 13. Qf3 {[%clk 0:01:35.5]} 13... Be4 {[%clk
0:01:26.7]} 14. Nxe4 {[%clk 0:01:31.6]} 14... Rxe4 {[%clk 0:01:18.3]} 15. Nxf6
{[%clk 0:01:18.8]} 15... Nxf6 {[%clk 0:01:16.5]} 16. Bxf7 {[%clk 0:01:14.2]}
16... Bd6 {[%clk 0:01:13.2]} 17. Bd5 {[%clk 0:01:08.7]} 17... Re7 {[%clk
0:01:09.8]} 18. Bc4 {[%clk 0:00:53.9]} 18... Rhe8 {[%clk 0:00:52.1]} 19. c3
{[%clk 0:00:53.2]} 19... Re1 {[%clk 0:00:49.5]} 20. Bd2 {[%clk 0:00:49.4]} 20...
Rxa1 {[%clk 0:00:46.1]} 21. Rxa1 {[%clk 0:00:47.8]} 21... Qc7 {[%clk 0:00:45.6]}
22. g3 {[%clk 0:00:39.5]} 22... h5 {[%clk 0:00:45.1]} 23. Re1 {[%clk 0:00:34.8]}
23... Rxe1+ {[%clk 0:00:43.2]} 24. Bxe1 {[%clk 0:00:35.7]} 24... g6 {[%clk
0:00:40.1]} 25. Bf1 {[%clk 0:00:34.9]} 25... Qe7 {[%clk 0:00:39.5]} 26. Bf2
{[%clk 0:00:33.7]} 26... Qe4 {[%clk 0:00:23.1]} 27. Qxe4 {[%clk 0:00:29.3]}
27... Nxe4 {[%clk 0:00:24]} 28. Be1 {[%clk 0:00:25.7]} 28... Nf6 {[%clk
0:00:22.6]} 29. Bd3 {[%clk 0:00:24.9]} 29... h4 {[%clk 0:00:17.7]} 30. Bxg6
{[%clk 0:00:23.6]} 30... hxg3 {[%clk 0:00:17.5]} 31. hxg3 {[%clk 0:00:24.5]}
31... Kd7 {[%clk 0:00:16.4]} 32. Kg2 {[%clk 0:00:23.2]} 32... Ke7 {[%clk
0:00:16.6]} 33. Kf3 {[%clk 0:00:22.8]} 33... Kf8 {[%clk 0:00:16.7]} 34. Bf5
{[%clk 0:00:21.9]} 34... Kg7 {[%clk 0:00:16.7]} 35. g4 {[%clk 0:00:21.6]} 35...
Nd5 {[%clk 0:00:16.4]} 36. Be4 {[%clk 0:00:20.6]} 36... Nxf4 {[%clk 0:00:16]}
37. Bg3 {[%clk 0:00:15.9]} 37... Nd3 {[%clk 0:00:09.3]} 38. Bxd6 {[%clk
0:00:14.1]} 38... Nxb2 {[%clk 0:00:09.3]} 39. Be5+ {[%clk 0:00:14.1]} 39... Kf7
{[%clk 0:00:09]} 40. g5 {[%clk 0:00:14.1]} 40... Nc4 {[%clk 0:00:09.2]} 41. Bd5+
{[%clk 0:00:14.3]} 41... Ke7 {[%clk 0:00:08.8]} 42. Bxc4 {[%clk 0:00:13.8]}
42... b5 {[%clk 0:00:09.7]} 43. Bd5 {[%clk 0:00:13.2]} 43... a6 {[%clk
0:00:10.6]} 44. g6 {[%clk 0:00:12.8]} 44... a5 {[%clk 0:00:11.5]} 45. g7 {[%clk
0:00:12.9]} 45... b4 {[%clk 0:00:12]} 46. cxb4 {[%clk 0:00:12]} 46... cxb4
{[%clk 0:00:11.8]} 47. g8=Q {[%clk 0:00:10.2]} 47... b3 {[%clk 0:00:12.3]} 48.
axb3 {[%clk 0:00:09.5]} 48... a4 {[%clk 0:00:12.2]} 49. Qg7+ {[%clk 0:00:09.4]}
49... Kd8 {[%clk 0:00:12.5]} 50. Bc7+ {[%clk 0:00:08.5]} 50... Kc8 {[%clk
0:00:12.7]} 51. Bb6 {[%clk 0:00:07]} 51... axb3 {[%clk 0:00:11.3]} 52. Qc7#
{[%clk 0:00:06.8]} 1-0

[Event "*** SCC Grand Prix: Titled Tuesday Blitz"]
[Site "Chess.com"]
[Date "2020.07.14"]
[Round "6"]
[White "Sanan_Sjugirov"]
[Black "WIDBIFS"]
[Result "1-0"]
[WhiteElo "2973"]
[BlackElo "2738"]
[TimeControl "180+1"]
[EndTime "11:07:58 PDT"]
[Termination "Sanan_Sjugirov won by resignation"]

1. d4 {[%clk 0:03:00.9]} 1... Nf6 {[%clk 0:02:59.6]} 2. c4 {[%clk 0:03:00.9]}
2... g6 {[%clk 0:02:59]} 3. f3 {[%clk 0:03:00.4]} 3... Bg7 {[%clk 0:02:59.6]} 4.
e4 {[%clk 0:02:59.9]} 4... O-O {[%clk 0:03:00.5]} 5. Nc3 {[%clk 0:02:59.6]} 5...
d6 {[%clk 0:03:01.1]} 6. Be3 {[%clk 0:02:51.5]} 6... c5 {[%clk 0:03:00.8]} 7. d5
{[%clk 0:02:50.9]} 7... e6 {[%clk 0:03:00.3]} 8. Nge2 {[%clk 0:02:50]} 8... exd5
{[%clk 0:02:59.8]} 9. cxd5 {[%clk 0:02:50.9]} 9... Na6 {[%clk 0:02:57.4]} 10.
Ng3 {[%clk 0:02:50]} 10... Nc7 {[%clk 0:02:57.8]} 11. a4 {[%clk 0:02:46]} 11...
Re8 {[%clk 0:02:57.2]} 12. Be2 {[%clk 0:02:44.7]} 12... a6 {[%clk 0:02:54.5]}
13. O-O {[%clk 0:02:44.1]} 13... Rb8 {[%clk 0:02:54.8]} 14. Qd2 {[%clk
0:02:28.4]} 14... b5 {[%clk 0:02:46.5]} 15. axb5 {[%clk 0:02:29.3]} 15... Nxb5
{[%clk 0:02:45.6]} 16. Nxb5 {[%clk 0:02:24.2]} 16... axb5 {[%clk 0:02:46.5]} 17.
b4 {[%clk 0:02:21.8]} 17... c4 {[%clk 0:02:10.6]} 18. Ra7 {[%clk 0:02:01]} 18...
Bb7 {[%clk 0:01:26.5]} 19. Rd1 {[%clk 0:01:51.4]} 19... Nd7 {[%clk 0:01:24.3]}
20. Bf1 {[%clk 0:01:47.7]} 20... Qc7 {[%clk 0:01:17.9]} 21. Ne2 {[%clk
0:01:46.1]} 21... Ra8 {[%clk 0:01:14.2]} 22. Rxa8 {[%clk 0:01:37.8]} 22... Bxa8
{[%clk 0:00:48.6]} 23. Nd4 {[%clk 0:01:29.9]} 23... Qb8 {[%clk 0:00:48.7]} 24.
Qa2 {[%clk 0:01:22.9]} 24... Bxd5 {[%clk 0:00:39.4]} 25. Qa6 {[%clk 0:01:16.3]}
25... Bxd4 {[%clk 0:00:26.8]} 26. Rxd4 {[%clk 0:01:09.6]} 26... Be6 {[%clk
0:00:27.2]} 27. Rxd6 {[%clk 0:00:55.3]} 27... Qc7 {[%clk 0:00:10.4]} 28. Bd4
{[%clk 0:00:45.5]} 28... c3 {[%clk 0:00:04]} 29. Rc6 {[%clk 0:00:36.2]} 29...
Nb8 {[%clk 0:00:02.4]} 30. Rxc7 {[%clk 0:00:32.9]} 30... Nxa6 {[%clk 0:00:02.9]}
31. Rxc3 {[%clk 0:00:32.2]} 31... Nxb4 {[%clk 0:00:02.1]} 32. Bxb5 {[%clk
0:00:32.1]} 32... Rb8 {[%clk 0:00:02.7]} 33. Bf1 {[%clk 0:00:28.2]} 33... h6
{[%clk 0:00:02.5]} 34. h4 {[%clk 0:00:27.5]} 34... g5 {[%clk 0:00:03]} 35. h5
{[%clk 0:00:27.8]} 35... f5 {[%clk 0:00:01.9]} 36. Rc7 {[%clk 0:00:26.4]} 36...
Bf7 {[%clk 0:00:01.7]} 37. Be5 {[%clk 0:00:17.4]} 37... fxe4 {[%clk 0:00:01.4]}
38. Rxf7 {[%clk 0:00:14.7]} 38... Kxf7 {[%clk 0:00:02.3]} 39. Bxb8 {[%clk
0:00:14.7]} 39... exf3 {[%clk 0:00:03.2]} 40. gxf3 {[%clk 0:00:14.9]} 40... Nc6
{[%clk 0:00:03.8]} 41. Bg3 {[%clk 0:00:14.3]} 41... Kf6 {[%clk 0:00:03.8]} 42.
Kf2 {[%clk 0:00:14.4]} 42... Nd4 {[%clk 0:00:04.1]} 43. Bd3 {[%clk 0:00:13.9]}
43... Ne6 {[%clk 0:00:04]} 44. Ke3 {[%clk 0:00:13.9]} 44... Nc5 {[%clk
0:00:04.3]} 45. Bg6 {[%clk 0:00:13.7]} 45... Ne6 {[%clk 0:00:04.4]} 46. Bb1
{[%clk 0:00:10]} 46... Nc5 {[%clk 0:00:04.6]} 47. Be1 {[%clk 0:00:10.3]} 47...
Ne6 {[%clk 0:00:04.9]} 48. Bc3+ {[%clk 0:00:10.5]} 48... Ke7 {[%clk 0:00:04.9]}
49. Be5 {[%clk 0:00:10.7]} 49... Nf8 {[%clk 0:00:03.7]} 50. Bf5 {[%clk
0:00:10.3]} 50... Kf7 {[%clk 0:00:03.9]} 51. Kd4 {[%clk 0:00:10]} 51... Ne6+
{[%clk 0:00:02.6]} 52. Bxe6+ {[%clk 0:00:09.4]} 1-0